[Event "December 12 Early 2023"]
[Site "https://www.chess.com"]
[Date "2023.12.12"]
[Round "2"]
[White "Lopez Idarraga, Daniel Eduardo"]
[Black "Kourkoulos-Arditis, Stamatis"]
[Result "1/2-1/2"]
[Board "85"]
[TimeControl "180+1"]
[WhiteFideId "4405501"]
[BlackFideId "4221990"]
[WhiteElo "2454"]
[BlackElo "2716"]
[WhiteTeam "COL"]
[BlackTeam "GRE"]
[WhiteClock "0:00:59"]
[BlackClock "0:00:58"]

1. e4 {[%clk 0:03:00]}  Nf6 {[%clk 0:02:54]} 2. e5 {[%clk 0:03:00]}  Nd5 {[%clk 0:02:54]} 3. c4 {[%clk 0:03:01]}  Nb6 {[%clk 0:02:54]} 4. d4 {[%clk 0:03:01]}  d6 {[%clk 0:02:55]} 5. exd6 {[%clk 0:03:02]}  exd6 {[%clk 0:02:53]} 6. Bd3 {[%clk 0:03:01]}  Be7 {[%clk 0:02:53]} 7. Ne2 {[%clk 0:03:02]}  Nc6 {[%clk 0:02:53]} 8. Be3 {[%clk 0:03:00]}  O-O {[%clk 0:02:52]} 9. O-O {[%clk 0:03:01]}  Bg4 {[%clk 0:02:49]} 10. Nbc3 {[%clk 0:03:01]}  Bf6 {[%clk 0:02:45]} 11. f3 {[%clk 0:02:58]}  Bh5 {[%clk 0:02:45]} 12. a3 {[%clk 0:02:57]}  Re8 {[%clk 0:02:43]} 13. Bf2 {[%clk 0:02:57]}  Bg6 {[%clk 0:02:43]} 14. b4 {[%clk 0:02:55]}  d5 {[%clk 0:02:38]} 15. c5 {[%clk 0:02:31]}  Bxd3 {[%clk 0:02:38]} 16. Qxd3 {[%clk 0:02:28]}  Nc4 {[%clk 0:02:38]} 17. Rfe1 {[%clk 0:02:22]}  a6 {[%clk 0:02:31]} 18. Nf4 {[%clk 0:02:15]}  Ne7 {[%clk 0:02:01]} 19. Nfxd5 {[%clk 0:02:07]}  Nxd5 {[%clk 0:01:57]} 20. Qxc4 {[%clk 0:02:07]}  Rxe1+ {[%clk 0:01:53]} 21. Rxe1 {[%clk 0:02:05]}  Nxc3 {[%clk 0:01:53]} 22. Qxc3 {[%clk 0:02:05]}  Qd5 {[%clk 0:01:54]} 23. Qe3 {[%clk 0:01:58]}  g6 {[%clk 0:01:51]} 24. Qe4 {[%clk 0:01:58]}  Rd8 {[%clk 0:01:45]} 25. Qxd5 {[%clk 0:01:55]}  Rxd5 {[%clk 0:01:45]} 26. Re4 {[%clk 0:01:51]}  Kf8 {[%clk 0:01:45]} 27. Kf1 {[%clk 0:01:49]}  Bg7 {[%clk 0:01:44]} 28. Ke2 {[%clk 0:01:40]}  f5 {[%clk 0:01:44]} 29. Rh4 {[%clk 0:01:40]}  h5 {[%clk 0:01:45]} 30. Kd3 {[%clk 0:01:31]}  Bf6 {[%clk 0:01:40]} 31. Rh3 {[%clk 0:01:31]}  c6 {[%clk 0:01:40]} 32. f4 {[%clk 0:01:13]}  Kf7 {[%clk 0:01:33]} 33. Rf3 {[%clk 0:01:11]}  Rd8 {[%clk 0:01:30]} 34. h4 {[%clk 0:01:08]}  Re8 {[%clk 0:01:02]} 35. Re3 {[%clk 0:01:05]}  Rxe3+ {[%clk 0:01:03]} 36. Kxe3 {[%clk 0:01:05]}  Ke6 {[%clk 0:01:03]} 37. Kd3 {[%clk 0:01:03]}  Kd5 {[%clk 0:01:03]} 38. g3 {[%clk 0:01:03]}  Bd8 {[%clk 0:01:03]} 39. Be3 {[%clk 0:01:00]}  a5 {[%clk 0:01:02]} 40. Bd2 {[%clk 0:01:00]}  a4 {[%clk 0:01:02]} 41. Be3 {[%clk 0:00:59]}  b6 {[%clk 0:01:01]} 42. Bd2 {[%clk 0:00:58]}  b5 {[%clk 0:00:56]} 43. Be3 {[%clk 0:00:57]}  Bf6 {[%clk 0:00:57]} 44. Bf2 {[%clk 0:00:58]}  Bg7 {[%clk 0:00:57]} 45. Be3 {[%clk 0:00:58]}  Bf6 {[%clk 0:00:58]} 46. Bf2 {[%clk 0:00:59]}  Bg7 {[%clk 0:00:58]} 47. Be3 {[%clk 0:00:59]}  Bf6 {[%clk 0:00:58]} 1/2-1/2

[Event "December 12 Early 2023"]
[Site "https://www.chess.com"]
[Date "2023.12.12"]
[Round "2"]
[White "Sourath Biswas"]
[Black "Xie, Bryan"]
[Result "1-0"]
[Board "86"]
[TimeControl "180+1"]
[WhiteFideId "35091484"]
[BlackFideId "30941296"]
[WhiteElo "2711"]
[BlackElo "2415"]
[WhiteTeam "IND"]
[BlackTeam "USA"]
[WhiteClock "0:00:26"]
[BlackClock "0:00:07"]

1. d4 {[%clk 0:03:00]}  d5 {[%clk 0:02:50]} 2. Bf4 {[%clk 0:03:00]}  Nf6 {[%clk 0:02:41]} 3. e3 {[%clk 0:03:00]}  Bf5 {[%clk 0:02:38]} 4. c4 {[%clk 0:02:59]}  c6 {[%clk 0:02:29]} 5. Qb3 {[%clk 0:02:57]}  Qc8 {[%clk 0:02:23]} 6. Nc3 {[%clk 0:02:56]}  e6 {[%clk 0:02:23]} 7. Rc1 {[%clk 0:02:44]}  Nbd7 {[%clk 0:02:22]} 8. cxd5 {[%clk 0:02:35]}  exd5 {[%clk 0:02:23]} 9. Nb5 {[%clk 0:02:33]}  Nc5 {[%clk 0:01:54]} 10. dxc5 {[%clk 0:02:30]}  cxb5 {[%clk 0:01:54]} 11. Bxb5+ {[%clk 0:02:02]}  Bd7 {[%clk 0:01:53]} 12. Nf3 {[%clk 0:01:55]}  Bxc5 {[%clk 0:01:33]} 13. Bd6 {[%clk 0:01:27]}  b6 {[%clk 0:01:19]} 14. Bxc5 {[%clk 0:01:14]}  bxc5 {[%clk 0:01:20]} 15. Bxd7+ {[%clk 0:01:15]}  Kxd7 {[%clk 0:01:13]} 16. O-O {[%clk 0:01:06]}  Re8 {[%clk 0:01:08]} 17. Qa3 {[%clk 0:00:59]}  Ne4 {[%clk 0:01:05]} 18. Rfd1 {[%clk 0:00:58]}  Qc6 {[%clk 0:00:57]} 19. Nd4 {[%clk 0:00:56]}  Qf6 {[%clk 0:00:53]} 20. Rxc5 {[%clk 0:00:32]}  Qxf2+ {[%clk 0:00:43]} 21. Kh1 {[%clk 0:00:32]}  Nxc5 {[%clk 0:00:41]} 22. Qxc5 {[%clk 0:00:31]}  Rxe3 {[%clk 0:00:18]} 23. Qxd5+ {[%clk 0:00:29]}  Ke7 {[%clk 0:00:09]} 24. Nf5+ {[%clk 0:00:27]}  Kf6 {[%clk 0:00:09]} 25. Nxe3 {[%clk 0:00:27]}  Qxe3 {[%clk 0:00:09]} 26. Qxa8 {[%clk 0:00:26]}  Qe2 {[%clk 0:00:07]} 27. Qf3+ {[%clk 0:00:26]} 1-0

[Event "December 12 Early 2023"]
[Site "https://www.chess.com"]
[Date "2023.12.12"]
[Round "2"]
[White "Munoz Sanchez, Miguel"]
[Black "Yaran, Siar"]
[Result "0-1"]
[Board "90"]
[TimeControl "180+1"]
[WhiteFideId "3600734"]
[BlackFideId "6323006"]
[WhiteElo "2347"]
[BlackElo "2702"]
[WhiteTeam "ECU"]
[BlackTeam "TUR"]
[WhiteClock "0:00:22"]
[BlackClock "0:00:49"]

1. d4 {[%clk 0:03:00]}  Nf6 {[%clk 0:02:59]} 2. Nf3 {[%clk 0:03:01]}  e6 {[%clk 0:02:59]} 3. g3 {[%clk 0:03:01]}  d5 {[%clk 0:03:00]} 4. Bg2 {[%clk 0:03:02]}  Be7 {[%clk 0:03:00]} 5. O-O {[%clk 0:03:02]}  O-O {[%clk 0:03:01]} 6. c4 {[%clk 0:03:02]}  dxc4 {[%clk 0:03:01]} 7. Qc2 {[%clk 0:02:56]}  a6 {[%clk 0:03:00]} 8. Qxc4 {[%clk 0:02:55]}  b5 {[%clk 0:03:00]} 9. Qc2 {[%clk 0:02:56]}  Bb7 {[%clk 0:03:00]} 10. Bf4 {[%clk 0:02:56]}  Bd6 {[%clk 0:02:58]} 11. Bxd6 {[%clk 0:02:49]}  cxd6 {[%clk 0:02:56]} 12. Nc3 {[%clk 0:02:48]}  Nbd7 {[%clk 0:02:51]} 13. a3 {[%clk 0:02:47]}  Rc8 {[%clk 0:02:51]} 14. Qb3 {[%clk 0:02:37]}  Qb6 {[%clk 0:02:45]} 15. Rac1 {[%clk 0:02:34]}  Bxf3 {[%clk 0:02:34]} 16. Bxf3 {[%clk 0:02:32]}  Qxd4 {[%clk 0:02:35]} 17. Rfd1 {[%clk 0:02:28]}  Qb6 {[%clk 0:02:33]} 18. Qb4 {[%clk 0:02:13]}  d5 {[%clk 0:02:27]} 19. Qh4 {[%clk 0:02:10]}  Ne5 {[%clk 0:02:21]} 20. Bg2 {[%clk 0:02:07]}  Rc4 {[%clk 0:02:20]} 21. Qg5 {[%clk 0:02:04]}  Neg4 {[%clk 0:02:14]} 22. Rf1 {[%clk 0:01:43]}  h6 {[%clk 0:01:45]} 23. Qd2 {[%clk 0:01:43]}  Rfc8 {[%clk 0:01:43]} 24. h3 {[%clk 0:01:39]}  Ne5 {[%clk 0:01:42]} 25. Kh2 {[%clk 0:01:39]}  a5 {[%clk 0:01:30]} 26. f4 {[%clk 0:01:37]}  Ned7 {[%clk 0:01:22]} 27. g4 {[%clk 0:01:32]}  Nc5 {[%clk 0:01:14]} 28. Qe3 {[%clk 0:01:21]}  d4 {[%clk 0:01:11]} 29. Qg3 {[%clk 0:01:06]}  dxc3 {[%clk 0:01:09]} 30. bxc3 {[%clk 0:01:05]}  Nce4 {[%clk 0:01:03]} 31. Qh4 {[%clk 0:01:04]}  Rxc3 {[%clk 0:00:59]} 32. Rcd1 {[%clk 0:00:55]}  Qe3 {[%clk 0:00:51]} 33. Rf3 {[%clk 0:00:50]}  Qxe2 {[%clk 0:00:51]} 34. Rdf1 {[%clk 0:00:22]}  Rc2 {[%clk 0:00:49]} 0-1

[Event "December 12 Early 2023"]
[Site "https://www.chess.com"]
[Date "2023.12.12"]
[Round "2"]
[White "Volkov, Maksim"]
[Black "Ernst, Luca"]
[Result "1-0"]
[Board "94"]
[TimeControl "180+1"]
[WhiteFideId "54123070"]
[BlackFideId "45117055"]
[WhiteElo "2680"]
[BlackElo "2298"]
[WhiteTeam "RUS"]
[BlackTeam "FRA"]
[WhiteClock "0:01:39"]
[BlackClock "0:00:16"]

1. e4 {[%clk 0:02:36]}  c5 {[%clk 0:02:58]} 2. Nf3 {[%clk 0:02:35]}  Nc6 {[%clk 0:02:58]} 3. d4 {[%clk 0:02:36]}  cxd4 {[%clk 0:02:58]} 4. Nxd4 {[%clk 0:02:36]}  Nf6 {[%clk 0:02:58]} 5. Nc3 {[%clk 0:02:37]}  e5 {[%clk 0:02:58]} 6. Ndb5 {[%clk 0:02:37]}  d6 {[%clk 0:02:59]} 7. Bg5 {[%clk 0:02:37]}  a6 {[%clk 0:02:59]} 8. Na3 {[%clk 0:02:36]}  b5 {[%clk 0:02:59]} 9. Bxf6 {[%clk 0:02:37]}  gxf6 {[%clk 0:03:00]} 10. Nd5 {[%clk 0:02:37]}  Bg7 {[%clk 0:02:56]} 11. c3 {[%clk 0:02:36]}  Be6 {[%clk 0:02:54]} 12. Nc2 {[%clk 0:02:35]}  O-O {[%clk 0:02:52]} 13. Nce3 {[%clk 0:02:34]}  Ne7 {[%clk 0:02:50]} 14. Be2 {[%clk 0:02:33]}  Bh6 {[%clk 0:02:46]} 15. O-O {[%clk 0:02:29]}  Bxe3 {[%clk 0:02:46]} 16. Nxf6+ {[%clk 0:02:26]}  Kh8 {[%clk 0:02:41]} 17. fxe3 {[%clk 0:02:26]}  Ng6 {[%clk 0:02:26]} 18. Bg4 {[%clk 0:02:25]}  Qb6 {[%clk 0:02:22]} 19. Qf3 {[%clk 0:02:11]}  Bxg4 {[%clk 0:01:41]} 20. Nxg4 {[%clk 0:02:11]}  f5 {[%clk 0:01:41]} 21. exf5 {[%clk 0:02:09]}  Nh4 {[%clk 0:01:41]} 22. Qe4 {[%clk 0:02:09]}  h5 {[%clk 0:01:33]} 23. Kh1 {[%clk 0:01:48]}  Qd8 {[%clk 0:00:37]} 24. f6 {[%clk 0:01:42]}  Rg8 {[%clk 0:00:16]} 25. Nh6 {[%clk 0:01:39]} 1-0

[Event "December 12 Early 2023"]
[Site "https://www.chess.com"]
[Date "2023.12.12"]
[Round "2"]
[White "Nagare Kaivalya Sandip"]
[Black "Cardozo Munar, Carlos Eduardo"]
[Result "1-0"]
[Board "96"]
[TimeControl "180+1"]
[WhiteFideId "25957929"]
[BlackFideId "4409477"]
[WhiteElo "2678"]
[BlackElo "2282"]
[WhiteTeam "IND"]
[BlackTeam "COL"]
[WhiteClock "0:02:34"]
[BlackClock "0:01:53"]

1. e4 {[%clk 0:03:00]}  e6 {[%clk 0:02:59]} 2. d4 {[%clk 0:03:00]}  d5 {[%clk 0:03:00]} 3. Nc3 {[%clk 0:03:00]}  Nf6 {[%clk 0:03:00]} 4. Bg5 {[%clk 0:03:00]}  Be7 {[%clk 0:03:00]} 5. e5 {[%clk 0:03:01]}  Nfd7 {[%clk 0:03:00]} 6. Bxe7 {[%clk 0:03:01]}  Qxe7 {[%clk 0:03:00]} 7. Qd2 {[%clk 0:03:02]}  c5 {[%clk 0:03:00]} 8. Nb5 {[%clk 0:03:01]}  Na6 {[%clk 0:02:51]} 9. Nd6+ {[%clk 0:03:01]}  Kf8 {[%clk 0:02:51]} 10. Bxa6 {[%clk 0:03:00]}  bxa6 {[%clk 0:02:52]} 11. c3 {[%clk 0:03:00]}  Rb8 {[%clk 0:02:52]} 12. Nf3 {[%clk 0:03:00]}  h5 {[%clk 0:02:50]} 13. O-O {[%clk 0:03:00]}  g6 {[%clk 0:02:50]} 14. b4 {[%clk 0:02:58]}  cxb4 {[%clk 0:02:50]} 15. cxb4 {[%clk 0:02:58]}  Kg7 {[%clk 0:02:50]} 16. Rfc1 {[%clk 0:02:58]}  Nb6 {[%clk 0:02:39]} 17. Ng5 {[%clk 0:02:50]}  Nc4 {[%clk 0:02:37]} 18. Qf4 {[%clk 0:02:49]}  Nxd6 {[%clk 0:02:32]} 19. exd6 {[%clk 0:02:49]}  Qe8 {[%clk 0:02:28]} 20. Rc7 {[%clk 0:02:47]}  Rb7 {[%clk 0:02:25]} 21. Qe5+ {[%clk 0:02:43]}  Kg8 {[%clk 0:02:12]} 22. Nxf7 {[%clk 0:02:41]}  Rh7 {[%clk 0:02:04]} 23. Nh6+ {[%clk 0:02:35]}  Kf8 {[%clk 0:01:53]} 24. Qf6+ {[%clk 0:02:34]} 1-0

[Event "December 12 Early 2023"]
[Site "https://www.chess.com"]
[Date "2023.12.12"]
[Round "2"]
[White "Makhnev, Denis"]
[Black "Rodriguez Avila, Alvaro"]
[Result "1-0"]
[Board "99"]
[TimeControl "180+1"]
[WhiteFideId "13707647"]
[BlackFideId "24570249"]
[WhiteElo "2673"]
[BlackElo "2248"]
[WhiteTeam "KAZ"]
[BlackTeam "ESP"]
[WhiteClock "0:01:20"]
[BlackClock "0:00:05"]

1. Nf3 {[%clk 0:03:00]}  Nf6 {[%clk 0:02:59]} 2. c4 {[%clk 0:03:00]}  e6 {[%clk 0:02:51]} 3. g3 {[%clk 0:02:59]}  d5 {[%clk 0:02:51]} 4. Bg2 {[%clk 0:02:59]}  Be7 {[%clk 0:02:52]} 5. O-O {[%clk 0:02:59]}  O-O {[%clk 0:02:52]} 6. d4 {[%clk 0:02:58]}  dxc4 {[%clk 0:02:51]} 7. Ne5 {[%clk 0:02:58]}  c5 {[%clk 0:02:47]} 8. Na3 {[%clk 0:02:55]}  cxd4 {[%clk 0:02:38]} 9. Naxc4 {[%clk 0:02:55]}  Nc6 {[%clk 0:02:11]} 10. Bxc6 {[%clk 0:02:39]}  bxc6 {[%clk 0:02:12]} 11. Nxc6 {[%clk 0:02:39]}  Qe8 {[%clk 0:02:12]} 12. Nxe7+ {[%clk 0:02:39]}  Qxe7 {[%clk 0:02:13]} 13. Qxd4 {[%clk 0:02:39]}  Ba6 {[%clk 0:02:08]} 14. Bg5 {[%clk 0:02:38]}  Rfd8 {[%clk 0:02:09]} 15. Bxf6 {[%clk 0:02:36]}  Rxd4 {[%clk 0:02:02]} 16. Bxe7 {[%clk 0:02:35]}  Bxc4 {[%clk 0:02:00]} 17. Rfd1 {[%clk 0:02:23]}  Rxd1+ {[%clk 0:01:48]} 18. Rxd1 {[%clk 0:02:24]}  Bxe2 {[%clk 0:01:49]} 19. Rd7 {[%clk 0:02:20]}  Bc4 {[%clk 0:01:45]} 20. a4 {[%clk 0:02:13]}  f6 {[%clk 0:01:29]} 21. b4 {[%clk 0:02:11]}  a6 {[%clk 0:01:27]} 22. Bc5 {[%clk 0:02:07]}  Bb3 {[%clk 0:01:20]} 23. a5 {[%clk 0:02:05]}  Bc4 {[%clk 0:01:20]} 24. f4 {[%clk 0:02:03]}  Bb5 {[%clk 0:01:04]} 25. Rd6 {[%clk 0:02:02]}  Re8 {[%clk 0:01:03]} 26. Kf2 {[%clk 0:02:01]}  Kf7 {[%clk 0:01:03]} 27. Ke3 {[%clk 0:02:00]}  Re7 {[%clk 0:00:59]} 28. Rb6 {[%clk 0:01:35]}  Rd7 {[%clk 0:00:59]} 29. Bd6 {[%clk 0:01:35]}  Bf1 {[%clk 0:00:51]} 30. Kd4 {[%clk 0:01:35]}  Be2 {[%clk 0:00:29]} 31. Kc5 {[%clk 0:01:34]}  Bf1 {[%clk 0:00:25]} 32. h4 {[%clk 0:01:27]}  Be2 {[%clk 0:00:24]} 33. g4 {[%clk 0:01:24]}  h5 {[%clk 0:00:18]} 34. gxh5 {[%clk 0:01:22]}  Bf1 {[%clk 0:00:10]} 35. Rb8 {[%clk 0:01:21]}  Be2 {[%clk 0:00:05]} 36. Rf8# {[%clk 0:01:20]} 1-0

[Event "December 12 Early 2023"]
[Site "https://www.chess.com"]
[Date "2023.12.12"]
[Round "2"]
[White "Quirke, Jeffrey"]
[Black "Wadsworth, Matthew J"]
[Result "1/2-1/2"]
[Board "100"]
[TimeControl "180+1"]
[WhiteFideId "2013029"]
[BlackFideId "415804"]
[WhiteElo "2155"]
[BlackElo "2668"]
[WhiteTeam "USA"]
[BlackTeam "ENG"]
[WhiteClock "0:00:06"]
[BlackClock "0:00:06"]

1. e4 {[%clk 0:03:00]}  c5 {[%clk 0:02:56]} 2. c3 {[%clk 0:03:00]}  Nf6 {[%clk 0:02:53]} 3. e5 {[%clk 0:03:00]}  Nd5 {[%clk 0:02:54]} 4. Nf3 {[%clk 0:03:00]}  e6 {[%clk 0:02:54]} 5. d4 {[%clk 0:02:58]}  cxd4 {[%clk 0:02:54]} 6. cxd4 {[%clk 0:02:58]}  d6 {[%clk 0:02:55]} 7. Bc4 {[%clk 0:02:56]}  dxe5 {[%clk 0:02:54]} 8. Nxe5 {[%clk 0:02:43]}  Bb4+ {[%clk 0:02:49]} 9. Bd2 {[%clk 0:02:41]}  Bxd2+ {[%clk 0:02:46]} 10. Qxd2 {[%clk 0:02:42]}  Nc6 {[%clk 0:02:46]} 11. Nxc6 {[%clk 0:02:36]}  bxc6 {[%clk 0:02:46]} 12. O-O {[%clk 0:02:35]}  O-O {[%clk 0:02:46]} 13. Nc3 {[%clk 0:02:34]}  a5 {[%clk 0:02:45]} 14. Ne4 {[%clk 0:02:26]}  Ba6 {[%clk 0:02:45]} 15. Rac1 {[%clk 0:02:21]}  Qb6 {[%clk 0:02:34]} 16. Bxa6 {[%clk 0:02:15]}  Rxa6 {[%clk 0:02:33]} 17. Rc4 {[%clk 0:02:06]}  Rb8 {[%clk 0:02:24]} 18. b3 {[%clk 0:01:55]}  h6 {[%clk 0:02:20]} 19. Rfc1 {[%clk 0:01:54]}  a4 {[%clk 0:02:20]} 20. Nc5 {[%clk 0:01:40]}  axb3 {[%clk 0:02:01]} 21. Nxa6 {[%clk 0:01:24]}  Qxa6 {[%clk 0:01:26]} 22. axb3 {[%clk 0:01:21]}  Rxb3 {[%clk 0:01:25]} 23. Rxc6 {[%clk 0:01:16]}  Qd3 {[%clk 0:01:25]} 24. Qxd3 {[%clk 0:00:57]}  Rxd3 {[%clk 0:01:26]} 25. R6c4 {[%clk 0:00:54]}  Nf4 {[%clk 0:01:25]} 26. Kf1 {[%clk 0:00:49]}  Rd2 {[%clk 0:01:16]} 27. g3 {[%clk 0:00:43]}  Nd5 {[%clk 0:01:13]} 28. R1c2 {[%clk 0:00:40]}  Rd1+ {[%clk 0:01:12]} 29. Ke2 {[%clk 0:00:39]}  Rh1 {[%clk 0:01:12]} 30. h4 {[%clk 0:00:39]}  g5 {[%clk 0:01:12]} 31. hxg5 {[%clk 0:00:38]}  hxg5 {[%clk 0:01:13]} 32. Rc5 {[%clk 0:00:33]}  Kg7 {[%clk 0:01:03]} 33. Rxd5 {[%clk 0:00:33]}  exd5 {[%clk 0:01:04]} 34. Rc5 {[%clk 0:00:34]}  Ra1 {[%clk 0:00:59]} 35. Rxd5 {[%clk 0:00:33]}  Kf6 {[%clk 0:00:59]} 36. Rb5 {[%clk 0:00:31]}  Ra3 {[%clk 0:00:58]} 37. Re5 {[%clk 0:00:25]}  g4 {[%clk 0:00:49]} 38. Re3 {[%clk 0:00:24]}  Ra2+ {[%clk 0:00:48]} 39. Kf1 {[%clk 0:00:24]}  Kf5 {[%clk 0:00:38]} 40. Rd3 {[%clk 0:00:20]}  Ke4 {[%clk 0:00:36]} 41. Rd1 {[%clk 0:00:20]}  Ra5 {[%clk 0:00:32]} 42. Ke2 {[%clk 0:00:17]}  f5 {[%clk 0:00:31]} 43. Rd2 {[%clk 0:00:14]}  Rd5 {[%clk 0:00:28]} 44. f3+ {[%clk 0:00:13]}  gxf3+ {[%clk 0:00:28]} 45. Kf2 {[%clk 0:00:13]}  Rd8 {[%clk 0:00:22]} 46. Rd1 {[%clk 0:00:13]}  f4 {[%clk 0:00:08]} 47. Re1+ {[%clk 0:00:10]}  Kf5 {[%clk 0:00:09]} 48. Kxf3 {[%clk 0:00:09]}  fxg3 {[%clk 0:00:08]} 49. Rd1 {[%clk 0:00:05]}  g2 {[%clk 0:00:06]} 50. Kxg2 {[%clk 0:00:06]}  Ke4 {[%clk 0:00:06]} 51. Kf2 {[%clk 0:00:06]}  Rxd4 {[%clk 0:00:06]} 52. Rxd4+ {[%clk 0:00:06]}  Kxd4 {[%clk 0:00:06]} 1/2-1/2

[Event "December 12 Early 2023"]
[Site "https://www.chess.com"]
[Date "2023.12.12"]
[Round "2"]
[White "BestStelker"]
[Black "BestestBP"]
[Result "1-0"]
[Board "101"]
[TimeControl "180+1"]
[WhiteElo "2667"]
[BlackElo "2129"]
[WhiteClock "0:00:10"]
[BlackClock "0:00:00"]

1. d4 {[%clk 0:03:00]}  Nf6 {[%clk 0:02:59]} 2. Nf3 {[%clk 0:03:01]}  e6 {[%clk 0:02:59]} 3. Bf4 {[%clk 0:02:59]}  d5 {[%clk 0:02:57]} 4. e3 {[%clk 0:03:00]}  c5 {[%clk 0:02:44]} 5. c3 {[%clk 0:02:55]}  Bd6 {[%clk 0:02:23]} 6. Bg3 {[%clk 0:02:51]}  O-O {[%clk 0:02:21]} 7. Bd3 {[%clk 0:02:51]}  Qc7 {[%clk 0:02:19]} 8. Nbd2 {[%clk 0:02:47]}  Nbd7 {[%clk 0:02:16]} 9. O-O {[%clk 0:02:43]}  Bxg3 {[%clk 0:02:01]} 10. hxg3 {[%clk 0:02:43]}  e5 {[%clk 0:01:59]} 11. dxe5 {[%clk 0:02:32]}  Nxe5 {[%clk 0:01:59]} 12. Nxe5 {[%clk 0:02:32]}  Qxe5 {[%clk 0:01:59]} 13. Nf3 {[%clk 0:02:23]}  Qc7 {[%clk 0:01:58]} 14. c4 {[%clk 0:02:20]}  dxc4 {[%clk 0:01:56]} 15. Bxc4 {[%clk 0:02:20]}  Bg4 {[%clk 0:01:54]} 16. Qb3 {[%clk 0:02:16]}  Ne4 {[%clk 0:01:22]} 17. Rfd1 {[%clk 0:02:09]}  Bxf3 {[%clk 0:01:09]} 18. gxf3 {[%clk 0:02:10]}  Nxg3 {[%clk 0:01:08]} 19. Bd5 {[%clk 0:01:45]}  Nf5 {[%clk 0:00:55]} 20. Qxb7 {[%clk 0:01:40]}  Qxb7 {[%clk 0:00:28]} 21. Bxb7 {[%clk 0:01:40]}  Rab8 {[%clk 0:00:29]} 22. Be4 {[%clk 0:01:41]}  Nh4 {[%clk 0:00:22]} 23. b3 {[%clk 0:01:35]}  f5 {[%clk 0:00:20]} 24. Bd5+ {[%clk 0:01:32]}  Kh8 {[%clk 0:00:20]} 25. f4 {[%clk 0:01:32]}  Rf6 {[%clk 0:00:20]} 26. Rac1 {[%clk 0:01:29]}  Ra6 {[%clk 0:00:15]} 27. a4 {[%clk 0:01:22]}  Rd6 {[%clk 0:00:15]} 28. Rxc5 {[%clk 0:01:17]}  Rbd8 {[%clk 0:00:15]} 29. Rdc1 {[%clk 0:01:14]}  g5 {[%clk 0:00:11]} 30. Bb7 {[%clk 0:00:56]}  gxf4 {[%clk 0:00:08]} 31. exf4 {[%clk 0:00:56]}  Rg6+ {[%clk 0:00:08]} 32. Kf1 {[%clk 0:00:54]}  Rb6 {[%clk 0:00:06]} 33. Rc8 {[%clk 0:00:48]}  Rxc8 {[%clk 0:00:07]} 34. Rxc8+ {[%clk 0:00:49]}  Kg7 {[%clk 0:00:06]} 35. Rc7+ {[%clk 0:00:48]}  Kh6 {[%clk 0:00:07]} 36. Bd5 {[%clk 0:00:44]}  Ng6 {[%clk 0:00:07]} 37. Bg8 {[%clk 0:00:30]}  Nxf4 {[%clk 0:00:07]} 38. Rxh7+ {[%clk 0:00:31]}  Kg6 {[%clk 0:00:06]} 39. Rxa7 {[%clk 0:00:31]}  Nd3 {[%clk 0:00:04]} 40. Bc4 {[%clk 0:00:27]}  Nc5 {[%clk 0:00:04]} 41. a5 {[%clk 0:00:26]}  Rb4 {[%clk 0:00:02]} 42. a6 {[%clk 0:00:14]}  Nxb3 {[%clk 0:00:02]} 43. Be2 {[%clk 0:00:11]}  Nd2+ {[%clk 0:00:00]} 44. Kg2 {[%clk 0:00:10]} 1-0

[Event "December 12 Early 2023"]
[Site "https://www.chess.com"]
[Date "2023.12.12"]
[Round "2"]
[White "Lopusiewicz, Piotr"]
[Black "Kamsky, Gata"]
[Result "0-1"]
[Board "104"]
[TimeControl "180+1"]
[WhiteFideId "1116029"]
[BlackFideId "2000024"]
[WhiteElo "2445"]
[BlackElo "2917"]
[WhiteTeam "POL"]
[BlackTeam "USA"]
[WhiteClock "0:01:27"]
[BlackClock "0:02:06"]

1. d4 {[%clk 0:03:00]}  f5 {[%clk 0:02:57]} 2. Bf4 {[%clk 0:03:00]}  Nf6 {[%clk 0:02:56]} 3. e3 {[%clk 0:03:00]}  g6 {[%clk 0:02:56]} 4. h4 {[%clk 0:02:59]}  h6 {[%clk 0:02:48]} 5. Qf3 {[%clk 0:02:50]}  d6 {[%clk 0:02:44]} 6. Nc3 {[%clk 0:02:48]}  Nc6 {[%clk 0:02:42]} 7. Bc4 {[%clk 0:02:43]}  e6 {[%clk 0:02:42]} 8. Qg3 {[%clk 0:02:43]}  Rg8 {[%clk 0:02:35]} 9. O-O-O {[%clk 0:02:39]}  Qe7 {[%clk 0:02:29]} 10. f3 {[%clk 0:02:36]}  Bd7 {[%clk 0:02:28]} 11. e4 {[%clk 0:02:26]}  Nh5 {[%clk 0:02:27]} 12. Qh2 {[%clk 0:02:26]}  Nxf4 {[%clk 0:02:27]} 13. Qxf4 {[%clk 0:02:26]}  O-O-O {[%clk 0:02:24]} 14. Nge2 {[%clk 0:02:18]}  Bg7 {[%clk 0:02:21]} 15. exf5 {[%clk 0:02:11]}  gxf5 {[%clk 0:02:20]} 16. Rhe1 {[%clk 0:02:09]}  Qf6 {[%clk 0:02:16]} 17. Qd2 {[%clk 0:02:02]}  h5 {[%clk 0:02:14]} 18. Bb5 {[%clk 0:01:59]}  Bh6 {[%clk 0:02:13]} 19. Nf4 {[%clk 0:01:59]}  Qxh4 {[%clk 0:02:12]} 20. Nce2 {[%clk 0:01:56]}  e5 {[%clk 0:02:11]} 21. g3 {[%clk 0:01:52]}  Qf6 {[%clk 0:02:09]} 22. dxe5 {[%clk 0:01:44]}  dxe5 {[%clk 0:02:08]} 23. Qc3 {[%clk 0:01:27]}  Rgf8 {[%clk 0:02:06]} 0-1

[Event "December 12 Early 2023"]
[Site "https://www.chess.com"]
[Date "2023.12.12"]
[Round "2"]
[White "Leenhouts, Koen"]
[Black "Bardyk, Artem"]
[Result "1-0"]
[Board "105"]
[TimeControl "180+1"]
[WhiteFideId "1008439"]
[BlackFideId "34349979"]
[WhiteElo "2515"]
[BlackElo "2772"]
[WhiteTeam "NED"]
[BlackTeam "RUS"]
[WhiteClock "0:00:27"]
[BlackClock "0:00:33"]

1. d4 {[%clk 0:03:00]}  d5 {[%clk 0:02:58]} 2. c4 {[%clk 0:03:00]}  e6 {[%clk 0:02:55]} 3. Nc3 {[%clk 0:02:59]}  c5 {[%clk 0:02:54]} 4. Nf3 {[%clk 0:02:52]}  cxd4 {[%clk 0:02:49]} 5. Nxd4 {[%clk 0:02:40]}  e5 {[%clk 0:02:44]} 6. Nf3 {[%clk 0:02:27]}  d4 {[%clk 0:02:35]} 7. Ne4 {[%clk 0:02:25]}  Nf6 {[%clk 0:02:31]} 8. Nxf6+ {[%clk 0:02:21]}  Qxf6 {[%clk 0:02:32]} 9. g3 {[%clk 0:02:15]}  e4 {[%clk 0:02:27]} 10. Nxd4 {[%clk 0:02:06]}  Bb4+ {[%clk 0:02:20]} 11. Bd2 {[%clk 0:02:05]}  e3 {[%clk 0:02:20]} 12. fxe3 {[%clk 0:01:57]}  Bd6 {[%clk 0:02:07]} 13. Bg2 {[%clk 0:01:52]}  h5 {[%clk 0:02:05]} 14. Bc3 {[%clk 0:01:48]}  Be5 {[%clk 0:01:55]} 15. Rf1 {[%clk 0:01:44]}  Qg6 {[%clk 0:01:53]} 16. Qd3 {[%clk 0:01:35]}  h4 {[%clk 0:01:39]} 17. Qxg6 {[%clk 0:01:28]}  fxg6 {[%clk 0:01:40]} 18. O-O-O {[%clk 0:01:27]}  hxg3 {[%clk 0:01:38]} 19. hxg3 {[%clk 0:01:24]}  a6 {[%clk 0:01:31]} 20. Be4 {[%clk 0:01:16]}  Rh6 {[%clk 0:01:20]} 21. Rh1 {[%clk 0:01:06]}  Bxg3 {[%clk 0:01:13]} 22. Rxh6 {[%clk 0:01:03]}  gxh6 {[%clk 0:01:14]} 23. Bxg6+ {[%clk 0:01:03]}  Ke7 {[%clk 0:01:12]} 24. Bf5 {[%clk 0:00:57]}  Nc6 {[%clk 0:01:06]} 25. Bxc8 {[%clk 0:00:55]}  Nxd4 {[%clk 0:01:00]} 26. Bg4 {[%clk 0:00:49]}  Ne6 {[%clk 0:00:55]} 27. Bb4+ {[%clk 0:00:47]}  Kf6 {[%clk 0:00:46]} 28. Rf1+ {[%clk 0:00:46]}  Ke5 {[%clk 0:00:47]} 29. Bc3+ {[%clk 0:00:42]}  Kd6 {[%clk 0:00:45]} 30. Rf6 {[%clk 0:00:41]}  Re8 {[%clk 0:00:45]} 31. Rxh6 {[%clk 0:00:40]}  Bf2 {[%clk 0:00:46]} 32. Kd2 {[%clk 0:00:36]}  Kd7 {[%clk 0:00:43]} 33. Kd3 {[%clk 0:00:34]}  Bg3 {[%clk 0:00:42]} 34. b4 {[%clk 0:00:33]}  b6 {[%clk 0:00:38]} 35. a4 {[%clk 0:00:32]}  Bd6 {[%clk 0:00:33]} 36. Ke4 {[%clk 0:00:27]} 1-0